bitfinex/quotes_SOLUSD_20230110
["timestamp","ask_amount","ask_price","bid_price","bid_amount"]
[1673333845810,19.88374802,16.038,16.026,20.0]
[1673333846214,20.0,16.037,16.026,20.0]
[1673333846635,19.88374802,16.038,16.026,20.0]
[1673333846849,17.0,16.037,16.026,20.0]
[1673333847172,0.88313121,16.036,16.026,20.0]
[1673333847789,20.0,16.047,16.027,46.81]
[1673333847993,20.0,16.047,16.028,20.0]
[1673333848209,39.00061681,16.048,16.03,20.0]
[1673333848420,39.00061681,16.048,16.031,182.3867]
[1673333848625,19.00061681,16.048,16.031,182.3867]
[1673333848841,26.69,16.05,16.031,182.3867]
[1673333849065,20.0,16.049,16.032,20.0]
[1673333849260,45.69061681,16.05,16.033,63.8]
[1673333849469,20.0,16.049,16.034,20.0]
[1673333849802,39.00061681,16.049,16.035,63.79]
[1673333850329,17.0,16.048,16.035,63.79]
[1673333852006,26.69,16.05,16.036,20.0]
[1673333852202,20.0,16.049,16.037,63.78]
[1673333852935,20.0,16.051,16.037,63.78]
[1673333854531,39.00061681,16.051,16.037,63.78]
[1673333854748,20.0,16.05,16.037,63.78]
[1673333855057,20.0,16.049,16.037,63.78]
[1673333855272,20.0,16.049,16.037,17.0]
[1673333856527,39.00061681,16.049,16.034,46.79]
[1673333856742,20.0,16.048,16.035,17.0]
[1673333856931,20.0,16.048,16.036,46.79]
[1673333857149,20.0,16.048,16.035,46.79]
[1673333857482,39.00061681,16.049,16.036,17.0]
[1673333857697,20.0,16.049,16.036,17.0]
[1673333858104,20.0,16.049,16.037,46.78]
[1673333858420,39.00061681,16.049,16.036,46.79]
[1673333858638,20.0,16.048,16.036,46.79]
[1673333858858,20.0,16.048,16.035,46.79]
[1673333859037,20.0,16.049,16.036,20.0]
[1673333859879,20.0,16.049,16.037,17.0]
[1673333861053,20.0,16.049,16.038,20.0]
[1673333861252,20.0,16.052,16.039,17.0]
[1673333861667,20.0,16.053,16.039,17.0]
[1673333862634,20.0,16.052,16.039,17.0]
[1673333862941,20.0,16.053,16.04,20.0]
[1673333863262,20.0,16.053,16.041,17.0]
[1673333863782,46.74,16.052,16.041,17.0]
[1673333863995,20.0,16.051,16.041,17.0]
[1673333864319,20.0,16.053,16.041,17.0]
[1673333869346,20.0,16.053,16.037,46.78]
[1673333871040,66.74,16.053,16.037,87.90578717]
[1673333871251,20.0,16.051,16.037,87.90578717]
[1673333871878,20.0,16.052,16.038,20.0]
[1673333872089,20.0,16.052,16.039,17.0]
[1673333873356,39.00061681,16.052,16.039,17.0]
[1673333873666,20.0,16.051,16.039,17.0]
[1673333874286,20.0,16.05,16.039,17.0]
[1673333875035,20.0,16.05,16.038,17.0]
[1673333875356,20.0,16.05,16.039,20.0]
[1673333875662,20.0,16.05,16.04,17.0]
[1673333875895,20.0,16.051,16.04,17.0]
[1673333876087,20.0,16.05,16.039,17.0]
[1673333876273,20.0,16.05,16.038,17.0]
[1673333877326,20.0,16.05,16.037,87.90578717]
[1673333877541,17.0,16.049,16.031,165.3867]
[1673333877746,20.0,16.047,16.031,118.5867]
[1673333877967,17.0,16.046,16.031,118.5867]
[1673333878292,20.0,16.045,16.031,118.5867]
[1673333878503,17.0,16.044,16.031,118.5867]
[1673333878818,36.00061681,16.044,16.031,118.5867]
[1673333879540,19.00061681,16.043,16.029,160.153]
[1673333879766,26.45,16.04,16.029,226.1907]
[1673333879956,20.0,16.039,16.029,112.8477]
[1673333882400,20.0,16.039,16.026,46.82]
[1673333882701,20.0,16.039,16.027,20.0]
[1673333884066,20.0,16.047,16.028,63.81]
[1673333884276,20.0,16.047,16.029,20.0]
[1673333884486,39.00061681,16.047,16.03,83.8]
[1673333884698,39.00061681,16.047,16.031,20.0]
[1673333884910,39.00061681,16.047,16.032,63.8]
[1673333886478,17.0,16.044,16.032,46.8]
[1673333886690,17.0,16.044,16.03,66.8]
[1673333887009,17.0,16.044,16.031,37.0]
[1673333887320,17.0,16.043,16.032,46.8]
[1673333887551,39.00061681,16.045,16.031,66.8]
[1673333887848,19.00061681,16.045,16.032,17.0]
[1673333888568,46.69,16.05,16.033,66.8]
[1673333888779,66.72,16.059,16.034,17.0]
[1673333888983,66.72,16.059,16.035,66.79]
[1673333889220,66.72,16.059,16.036,17.0]
[1673333889413,66.72,16.059,16.037,66.78]
[1673333889613,66.72,16.059,16.038,126.7098]
[1673333889829,20.0,16.058,16.039,66.78]
[1673333890040,20.0,16.058,16.04,17.0]
[1673333890347,20.0,16.058,16.042,20.0]
[1673333890561,20.0,16.058,16.043,174.705]
[1673333890769,20.0,16.058,16.044,20.0]
[1673333891010,20.0,16.059,16.045,17.0]
[1673333891934,179.27,16.06,16.043,157.705]
[1673333891935,26.69,16.06,16.044,17.0]
[1673333892274,20.0,16.063,16.045,55.74066924]
[1673333892275,20.0,16.059,16.045,55.74066924]
[1673333892455,20.0,16.059,16.046,37.0]
[1673333892665,20.0,16.062,16.048,20.0]
[1673333892879,20.0,16.062,16.049,17.0]
[1673333893294,151.39061681,16.07,16.044,35.14578717]
[1673333893295,46.69,16.068,16.05,128.13578717]
[1673333893514,111.4823,16.074,16.052,20.0]
[1673333893515,20.0,16.069,16.052,20.0]
[1673333893718,20.0,16.07,16.053,46.74]
[1673333894046,20.0,16.07,16.054,37.0]
[1673333894257,20.0,16.071,16.055,46.73]
[1673333894457,20.0,16.071,16.056,37.0]
[1673333894677,20.0,16.072,16.057,46.73]
[1673333894894,20.0,16.072,16.058,17.0]
[1673333895308,20.0,16.072,16.057,37.0]
[1673333895526,20.0,16.071,16.058,46.72]
[1673333895745,20.0,16.071,16.059,17.0]
[1673333895943,20.0,16.072,16.059,17.0]
[1673333897526,66.68,16.072,16.058,46.72]
[1673333897738,39.00061681,16.071,16.055,46.73]
[1673333897951,20.0,16.07,16.055,46.73]
[1673333898677,46.67,16.076,16.056,40.0]
[1673333898884,36.00061681,16.074,16.057,63.73]
[1673333899107,36.00061681,16.074,16.058,20.0]
[1673333899300,36.00061681,16.074,16.059,17.0]
[1673333899510,36.00061681,16.074,16.06,40.0]
[1673333899737,19.00061681,16.074,16.061,17.0]
[1673333900579,19.00061681,16.074,16.061,127.5836]
[1673333901829,19.00061681,16.074,16.062,20.0]
[1673333902168,19.00061681,16.074,16.063,17.0]
[1673333902557,19.00061681,16.074,16.062,17.0]
[1673333902976,19.00061681,16.074,16.062,37.0]
[1673333903517,19.00061681,16.074,16.062,17.0]
[1673333904249,46.66,16.078,16.062,17.0]
[1673333904462,66.66,16.079,16.062,17.0]
[1673333904777,66.66,16.079,16.063,20.0]
[1673333904990,66.66,16.079,16.064,17.0]
[1673333905393,19.00061681,16.076,16.064,17.0]
[1673333905595,46.67,16.075,16.061,157.2936]
[1673333905809,20.0,16.074,16.061,157.2936]
[1673333906351,20.0,16.074,16.061,110.5836]
[1673333906998,39.00061681,16.074,16.06,46.72]
[1673333907312,132.26,16.07,16.052,110.9199]
[1673333907503,20.0,16.068,16.052,110.9199]
[1673333907714,63.7,16.067,16.052,110.9199]
[1673333907937,82.70061681,16.067,16.052,110.9199]
[1673333908256,46.7,16.067,16.052,110.9199]
[1673333908569,62.50773991,16.102,16.07,38.76591412]
[1673333908786,5.7023369,16.11,16.08,132.48]
[1673333908971,138.1423369,16.11,16.081,46.66]
[1673333909184,20.0,16.104,16.083,20.0]
[1673333909390,46.57,16.109,16.084,202.1457]
[1673333909605,20.0,16.108,16.085,20.0]
[1673333909826,46.58,16.107,16.086,63.64]
[1673333910040,20.0,16.106,16.087,40.0]
[1673333910251,46.59,16.105,16.088,63.64]
[1673333910447,46.59,16.105,16.089,20.0]
[1673333910663,46.58,16.107,16.089,20.0]
[1673333910869,20.0,16.106,16.089,20.0]
[1673333911081,46.59,16.105,16.089,20.0]
[1673333911301,46.58,16.107,16.089,20.0]
[1673333911518,46.58,16.107,16.09,17.0]
[1673333912353,46.58,16.107,16.09,46.63]
[1673333912566,37.0,16.106,16.089,20.0]
[1673333912758,46.59,16.105,16.089,20.0]
[1673333912964,20.0,16.103,16.087,20.0]
[1673333913181,17.0,16.102,16.088,46.64]
[1673333913389,17.0,16.102,16.089,20.0]
[1673333913611,20.0,16.104,16.09,17.0]
[1673333913810,37.0,16.104,16.089,20.0]
[1673333914025,37.0,16.104,16.087,20.0]
[1673333914242,37.0,16.104,16.088,63.64]
[1673333914449,37.0,16.104,16.089,20.0]
[1673333915706,26.26,16.1,16.086,46.64]
[1673333915921,20.0,16.098,16.084,118.4957]
[1673333916121,17.0,16.097,16.084,118.4957]
[1673333916546,20.0,16.098,16.084,118.4957]
[1673333916755,17.0,16.097,16.084,118.4957]
[1673333917379,20.0,16.098,16.084,118.4957]
[1673333918006,20.0,16.099,16.084,118.4957]
[1673333918231,20.0,16.099,16.085,17.0]
[1673333918956,17.0,16.098,16.084,118.4957]
[1673333919375,66.6,16.099,16.085,17.0]
[1673333919585,17.0,16.098,16.084,118.4957]
[1673333920022,20.0,16.097,16.084,127.47636924]
[1673333920213,20.0,16.097,16.084,118.4957]
[1673333920430,20.0,16.097,16.085,17.0]
[1673333921073,20.0,16.097,16.081,46.66]
[1673333921273,20.0,16.095,16.082,17.0]
[1673333921488,20.0,16.095,16.078,46.66]
[1673333921701,66.61,16.097,16.08,20.0]
[1673333922039,20.0,16.095,16.081,46.66]
[1673333922236,20.0,16.095,16.08,46.66]
[1673333922564,20.0,16.095,16.081,20.0]
[1673333922775,20.0,16.095,16.08,46.66]
[1673333923086,66.61,16.095,16.079,40.0]
[1673333923296,20.0,16.095,16.081,20.0]
[1673333923509,20.0,16.095,16.082,17.0]
[1673333924030,17.0,16.096,16.082,17.0]
[1673333925500,17.0,16.096,16.081,17.0]
[1673333925907,17.0,16.096,16.081,37.0]
[1673333927390,20.0,16.097,16.081,37.0]
[1673333927601,20.0,16.097,16.082,20.0]
[1673333927814,20.0,16.097,16.083,17.0]
[1673333928422,46.61,16.098,16.083,17.0]
[1673333928638,66.6,16.099,16.083,17.0]
[1673333928862,66.6,16.099,16.083,63.65]
[1673333929063,66.36391994,16.099,16.083,63.65]
[1673333929275,19.76391994,16.099,16.084,20.0]
[1673333929481,66.36391994,16.099,16.085,17.0]
[1673333930127,66.36391994,16.099,16.082,46.65]
[1673333930339,20.0,16.097,16.081,20.0]
[1673333930655,20.0,16.097,16.083,20.0]
[1673333931073,20.0,16.097,16.082,46.65]
[1673333931492,20.0,16.097,16.083,17.0]
[1673333932462,20.0,16.097,16.082,46.65]
[1673333932463,17.0,16.096,16.082,46.65]
[1673333932656,17.0,16.096,16.081,46.66]
[1673333932869,17.0,16.096,16.079,20.0]
[1673333932870,131.66,16.09,16.07,38.76591412]
[1673333933207,20.0,16.088,16.07,65.09591412]
[1673333933421,20.0,16.088,16.071,46.68]
[1673333933814,66.85007167,16.088,16.071,46.68]
[1673333934020,46.64,16.087,16.07,38.76591412]
[1673333934237,20.0,16.085,16.07,38.76591412]
[1673333934453,46.65,16.084,16.07,38.76591412]
[1673333935081,20.0,16.085,16.07,38.76591412]
[1673333935287,131.96,16.08,16.033,85.36643382]
[1673333935499,105.52,16.06,16.036,30.0]
[1673333935714,66.72,16.059,16.02,138.8554]
[1673333935917,153.09496078,16.059,16.031,22.36]
[1673333936137,52.62,16.05,16.031,22.36]
[1673333936358,103.75,16.049,16.031,22.36]
[1673333936546,66.75,16.049,16.032,20.0]
[1673333936766,26.24,16.05,16.033,22.36]
[1673333936975,83.75,16.049,16.031,22.36]
[1673333937175,20.0,16.048,16.022,3.099]
[1673333937392,26.38,16.04,16.022,3.099]
[1673333937815,17.0,16.039,16.031,3.097]
[1673333938032,63.75,16.047,16.021,20.0]
[1673333938033,63.75,16.047,16.022,3.099]
[1673333938242,63.75,16.047,16.031,4.315]
[1673333938563,46.75,16.047,16.031,4.315]
[1673333938776,17.0,16.046,16.031,20.0]
[1673333939306,17.0,16.046,16.023,20.0]
[1673333939516,17.0,16.046,16.024,8.46]
[1673333939945,17.0,16.046,16.031,17.0]
[1673333940149,17.0,16.046,16.024,8.46]
[1673333940480,26.33,16.04,16.024,8.46]
[1673333940679,17.0,16.039,16.031,20.0]
[1673333942157,26.33,16.04,16.031,20.0]
[1673333942784,20.0,16.045,16.031,20.0]
[1673333942998,17.0,16.044,16.031,20.0]
[1673333944056,66.76,16.045,16.031,20.0]
[1673333944369,20.0,16.046,16.032,17.0]
[1673333945106,66.75,16.048,16.032,17.0]
[1673333945296,66.75,16.049,16.032,30.86]
[1673333945509,46.72,16.058,16.032,30.86]
[1673333945727,20.0,16.057,16.034,20.0]
[1673333946041,20.0,16.055,16.036,20.0]
[1673333946239,20.0,16.053,16.038,20.0]
[1673333946450,20.0,16.053,16.039,37.0]
[1673333946999,17.0,16.052,16.039,37.0]
[1673333948879,17.0,16.052,16.04,20.0]
[1673333949085,17.0,16.052,16.041,20.0]
[1673333949288,20.0,16.055,16.041,20.0]
[1673333949515,17.0,16.054,16.041,20.0]
[1673333950444,17.0,16.054,16.038,20.0]
[1673333950658,66.74,16.053,16.038,20.0]
[1673333950998,17.0,16.052,16.038,20.0]
[1673333951179,20.0,16.051,16.038,20.0]
[1673333951390,17.0,16.05,16.038,20.0]
[1673333951604,20.0,16.049,16.038,20.0]
[1673333953938,46.73,16.054,16.039,17.0]
[1673333954249,17.0,16.053,16.04,20.0]
[1673333954556,46.73,16.056,16.04,20.0]
[1673333954557,46.73,16.056,16.041,20.0]
[1673333954794,20.0,16.055,16.041,20.0]
[1673333955013,46.73,16.054,16.041,20.0]
[1673333955849,20.0,16.052,16.04,20.0]
[1673333956900,20.0,16.052,16.041,17.0]
[1673333957629,46.73,16.054,16.041,17.0]
[1673333957957,20.0,16.055,16.04,20.0]
[1673333958144,46.73,16.054,16.037,20.0]
[1673333958356,20.0,16.053,16.037,20.0]
[1673333958565,20.0,16.051,16.037,20.0]
[1673333958896,17.0,16.05,16.037,20.0]
[1673333960265,17.0,16.051,16.037,20.0]
[1673333963751,40.0,16.05,16.035,34.8]
[1673333963950,17.0,16.049,16.035,20.0]
[1673333968367,46.74,16.052,16.036,17.0]
[1673333968582,46.73,16.056,16.038,20.0]
[1673333968793,46.73,16.056,16.039,17.0]
[1673333969008,46.73,16.056,16.04,20.0]
[1673333969197,46.73,16.056,16.041,20.0]
[1673333969527,20.0,16.055,16.041,20.0]
[1673333969718,17.0,16.054,16.041,20.0]
[1673333969928,41.7565733,16.061,16.042,30.35132147]
[1673333970145,132.21,16.08,16.05,26.51]
[1673333970356,132.21,16.08,16.051,156.4171]
[1673333970667,20.0,16.069,16.051,156.4171]
[1673333970879,46.69,16.068,16.051,109.6771]
[1673333971306,20.0,16.069,16.052,37.0]
[1673333971519,66.69,16.069,16.053,46.74]
[1673333971828,46.69,16.069,16.055,20.0]
[1673333972027,26.27,16.07,16.056,17.0]
[1673333972241,26.27,16.07,16.053,46.74]
[1673333972472,46.69,16.069,16.054,17.0]
[1673333972786,26.27,16.07,16.054,20.0]
[1673333972974,26.27,16.07,16.055,63.73]
[1673333973187,20.0,16.069,16.055,46.73]
[1673333973610,20.0,16.069,16.056,17.0]
[1673333974259,132.55,16.09,16.06,26.51]
[1673333974465,46.65,16.082,16.061,178.7681]
[1673333974782,20.0,16.088,16.062,20.0]
[1673333975100,20.0,16.086,16.064,20.0]
[1673333975306,46.64,16.085,16.066,20.0]
[1673333975506,19.00061681,16.094,16.07,26.48]
[1673333975828,20.0,16.092,16.072,20.0]
[1673333976047,46.63,16.091,16.073,46.68]
[1673333976258,151.70061681,16.1,16.071,20.0]
[1673333976259,26.51,16.09,16.072,46.68]
[1673333976669,20.0,16.088,16.071,20.0]
[1673333976992,46.64,16.087,16.067,46.7]
[1673333977195,20.0,16.086,16.066,20.0]
[1673333977398,66.64,16.085,16.067,46.7]
[1673333977821,66.64,16.085,16.066,20.0]
[1673333979081,20.0,16.084,16.066,20.0]
[1673333979297,66.65,16.083,16.066,20.0]
[1673333979517,83.65,16.083,16.065,161.7581]
[1673333979704,83.65,16.083,16.066,20.0]
[1673333980666,83.65,16.083,16.065,46.7]
[1673333980883,132.3,16.08,16.051,110.2061]
[1673333981069,46.66,16.079,16.051,110.2061]
[1673333981288,17.0,16.078,16.051,118.68845037]
[1673333981498,20.0,16.076,16.053,20.0]
[1673333981707,26.51,16.07,16.054,46.73]
[1673333981913,26.51,16.06,16.052,8.48235037]
[1673333982147,83.72,16.059,16.034,110.2061]
[1673333982335,1.62126357,16.058,16.034,110.2061]
[1673333982670,26.51,16.05,16.035,46.79]
[1673333982982,17.0,16.049,16.035,46.79]
[1673333983705,26.51,16.05,16.035,46.79]
[1673333983915,17.0,16.049,16.036,20.0]
[1673333984130,17.0,16.049,16.037,46.78]
[1673333985196,17.0,16.049,16.036,46.79]
[1673333985519,17.0,16.049,16.037,20.0]
[1673333988670,26.51,16.05,16.037,20.0]
[1673333988986,20.0,16.076,16.037,20.0]
[1673333988987,26.51,16.07,16.04,132.37]
[1673333989175,20.0,16.069,16.041,83.77]
[1673333989392,20.0,16.068,16.042,20.0]
[1673333989596,26.51,16.06,16.043,46.77]
[1673333989816,20.0,16.059,16.043,46.77]
[1673333990230,66.72,16.058,16.041,20.0]
[1673333990666,66.72,16.058,16.04,20.0]
[1673333990880,17.0,16.057,16.04,20.0]
[1673333991071,46.73,16.056,16.04,20.0]
[1673333991281,17.0,16.055,16.04,20.0]
[1673333992447,20.0,16.056,16.041,20.0]
[1673333992656,46.73,16.057,16.041,20.0]
[1673333994545,46.73,16.057,16.042,17.0]
[1673333994763,66.72,16.058,16.042,17.0]
[1673333995083,46.72,16.058,16.042,17.0]
[1673333995288,20.0,16.079,16.042,17.0]
[1673333995289,46.7,16.067,16.043,66.77]
[1673333995511,20.0,16.066,16.044,20.0]
[1673333995698,20.0,16.064,16.046,20.0]
[1673333996041,46.71,16.063,16.047,20.0]
[1673333996452,46.7,16.065,16.048,20.0]
[1673333996671,17.0,16.064,16.049,20.0]
[1673333996992,17.0,16.064,16.05,20.0]
[1673333997204,17.0,16.064,16.051,20.0]
[1673333997932,17.0,16.065,16.051,20.0]
[1673333998558,26.42,16.07,16.052,20.0]
[1673333998771,20.0,16.069,16.053,17.0]
[1673333998986,66.69,16.069,16.055,20.0]
[1673333999814,17.0,16.068,16.055,20.0]
[1673334000456,19.00061681,16.074,16.055,20.0]
[1673334000656,46.67,16.076,16.056,83.73]
[1673334001285,46.66,16.078,16.057,20.0]
[1673334001482,46.66,16.078,16.059,20.0]
[1673334001692,46.66,16.078,16.06,66.72]
[1673334001905,46.66,16.079,16.062,20.0]
[1673334002136,46.66,16.079,16.063,17.0]
[1673334002349,46.66,16.079,16.064,20.0]
[1673334004876,17.0,16.078,16.064,20.0]
[1673334005084,17.0,16.079,16.064,20.0]
[1673334005392,63.66,16.079,16.064,20.0]
[1673334005797,46.65,16.082,16.064,20.0]
[1673334006010,132.71,16.08,16.065,20.0]
[1673334006224,46.64,16.085,16.065,28.00356492]
[1673334006544,20.0,16.087,16.066,28.00356492]
[1673334006867,46.64,16.086,16.068,20.0]
[1673334007071,46.64,16.086,16.069,66.69]
[1673334007319,132.55,16.09,16.069,8.00356492]
[1673334007482,19.00061681,16.088,16.067,46.7]
[1673334007694,20.0,16.087,16.068,40.0]
[1673334007908,46.64,16.086,16.068,20.0]
[1673334008126,20.0,16.085,16.068,20.0]
[1673334008336,46.65,16.084,16.067,20.0]
[1673334008738,46.65,16.084,16.068,20.0]
[1673334008955,17.0,16.083,16.068,20.0]
[1673334009173,46.65,16.082,16.068,20.0]
[1673334009375,17.0,16.081,16.068,20.0]
[1673334011472,17.0,16.081,16.067,20.0]
[1673334011893,63.65,16.082,16.067,20.0]
[1673334014016,20.0,16.081,16.067,20.0]
[1673334014226,63.66,16.08,16.067,20.0]
[1673334014554,63.66,16.08,16.066,20.0]
[1673334014771,17.0,16.08,16.067,20.0]
[1673334015489,17.0,16.08,16.062,66.71]
[1673334015708,66.66,16.079,16.057,46.73]
[1673334015895,66.66,16.079,16.047,108.5109]
[1673334015896,24.43,16.07,16.054,20.0]
[1673334016107,66.69,16.069,16.054,20.0]
[1673334016332,17.0,16.068,16.054,20.0]
[1673334017913,46.68,16.074,16.055,63.73]
[1673334018127,46.65,16.082,16.056,20.0]
[1673334018311,20.0,16.078,16.058,20.0]
[1673334018524,46.67,16.077,16.06,20.0]
[1673334018729,46.67,16.077,16.061,137.8175]
[1673334018960,46.67,16.077,16.062,20.0]
[1673334019576,65.67061681,16.077,16.061,137.8175]
[1673334019902,65.67061681,16.077,16.062,20.0]
[1673334019903,46.67,16.077,16.062,20.0]
[1673334020948,46.66,16.079,16.062,20.0]
[1673334021146,20.0,16.078,16.062,20.0]
[1673334021356,46.67,16.077,16.061,137.8175]
[1673334021566,17.0,16.076,16.061,137.8175]
[1673334021783,46.67,16.075,16.061,137.8175]
[1673334021993,17.0,16.074,16.061,137.8175]
[1673334022210,46.67,16.077,16.061,137.8175]
[1673334022416,62.50773991,16.101,16.062,37.0]
[1673334022417,46.65,16.082,16.062,37.0]
[1673334022640,39.00061681,16.08,16.062,37.0]
[1673334022842,66.66,16.079,16.062,37.0]
[1673334023058,20.0,16.078,16.062,37.0]
[1673334023274,39.00061681,16.078,16.062,37.0]
[1673334023675,17.0,16.077,16.062,37.0]
[1673334023888,66.67,16.076,16.061,137.8175]
[1673334024099,17.0,16.075,16.061,137.8175]
[1673334024308,20.0,16.073,16.061,137.8175]
[1673334024519,17.0,16.072,16.061,137.8175]
[1673334024956,17.0,16.073,16.061,137.8175]
[1673334026854,17.0,16.073,16.062,20.0]
[1673334027171,40.0,16.079,16.062,20.0]
[1673334027172,39.00061681,16.077,16.062,20.0]
[1673334028627,17.0,16.076,16.062,20.0]
[1673334029042,46.66,16.078,16.062,20.0]
[1673334029260,20.0,16.079,16.064,20.0]
[1673334029462,65.66061681,16.078,16.062,20.0]
[1673334029689,20.0,16.077,16.062,20.0]
[1673334030104,39.00061681,16.077,16.062,20.0]
[1673334030306,85.67061681,16.077,16.062,20.0]
[1673334030518,39.00061681,16.077,16.062,20.0]
[1673334030937,17.0,16.076,16.062,20.0]
[1673334031357,36.00061681,16.076,16.061,137.8175]
[1673334031568,46.67,16.075,16.061,137.8175]
[1673334031791,17.0,16.074,16.061,137.8175]
[1673334032201,17.0,16.074,16.062,20.0]
[1673334033373,17.0,16.074,16.061,137.8175]
[1673334034087,46.67,16.075,16.062,20.0]
[1673334034308,65.67061681,16.076,16.062,20.0]
[1673334034529,20.0,16.075,16.062,20.0]
[1673334035052,24.66,16.07,16.053,46.74]
[1673334035248,66.69,16.069,16.049,156.3482]
[1673334035458,17.0,16.068,16.049,156.3482]
[1673334035786,36.00061681,16.068,16.053,20.0]
[1673334036408,17.0,16.068,16.053,20.0]
[1673334037479,17.0,16.068,16.054,17.0]
[1673334037895,24.66,16.07,16.055,20.0]
[1673334038220,19.00061681,16.076,16.056,83.73]
[1673334038432,19.00061681,16.076,16.058,20.0]
[1673334038738,19.00061681,16.076,16.06,20.0]
[1673334038946,19.00061681,16.076,16.061,37.0]
[1673334039585,20.0,16.077,16.062,20.0]
[1673334039794,46.66,16.078,16.063,17.0]
[1673334040009,20.0,16.077,16.063,17.0]
[1673334040402,66.66,16.079,16.063,17.0]
[1673334040822,17.0,16.078,16.063,17.0]
[1673334041033,17.0,16.078,16.061,66.71]
[1673334041244,20.0,16.077,16.061,66.71]
[1673334041463,17.0,16.076,16.061,66.71]
[1673334043583,36.00061681,16.076,16.061,20.0]
[1673334045581,36.00061681,16.076,16.062,17.0]
[1673334045776,17.0,16.076,16.063,20.0]
[1673334046098,85.66061681,16.079,16.064,17.0]
[1673334046285,17.0,16.078,16.064,17.0]
[1673334046496,66.66,16.079,16.064,17.0]
[1673334046934,46.66,16.079,16.064,17.0]
[1673334047142,46.65,16.084,16.065,86.7]
[1673334047352,46.63,16.089,16.066,17.0]
[1673334047668,19.00061681,16.088,16.067,66.7]
[1673334047889,19.00061681,16.088,16.069,20.0]
[1673334048075,19.00061681,16.088,16.07,181.4395]
[1673334048285,46.63,16.089,16.071,20.0]
[1673334048491,46.63,16.091,16.072,63.68]
[1673334048708,123.23,16.1,16.072,63.68]
[1673334048709,19.00061681,16.096,16.073,20.0]
[1673334049037,46.61,16.095,16.075,20.0]
[1673334049233,46.61,16.095,16.076,83.67]
[1673334049440,65.61061681,16.095,16.076,83.67]
[1673334049650,65.61061681,16.095,16.076,66.67]